[Event "*** SCC Grand Prix: Titled Tuesday Blitz"]
[Site "Chess.com"]
[Date "2020.07.21"]
[Round "6"]
[White "51616516516"]
[Black "tan275"]
[Result "1/2-1/2"]
[WhiteElo "2408"]
[BlackElo "2258"]
[TimeControl "180+1"]
[EndTime "11:07:19 PDT"]
[Termination "Game drawn by repetition"]

1. Nf3 {[%clk 0:03:00.9]} 1... d5 {[%clk 0:02:59.6]} 2. d4 {[%clk 0:02:57.5]}
2... c5 {[%clk 0:02:58.2]} 3. c4 {[%clk 0:02:52.9]} 3... dxc4 {[%clk 0:02:50]}
4. e3 {[%clk 0:02:49.6]} 4... e6 {[%clk 0:02:46.2]} 5. Bxc4 {[%clk 0:02:48.6]}
5... Nc6 {[%clk 0:02:46.2]} 6. O-O {[%clk 0:02:48.1]} 6... Nf6 {[%clk
0:02:45.1]} 7. Nc3 {[%clk 0:02:48.3]} 7... a6 {[%clk 0:02:42.4]} 8. a4 {[%clk
0:02:47]} 8... cxd4 {[%clk 0:02:41]} 9. exd4 {[%clk 0:02:46.7]} 9... Be7 {[%clk
0:02:34.9]} 10. Qe2 {[%clk 0:02:44]} 10... O-O {[%clk 0:02:33.3]} 11. Rd1 {[%clk
0:02:43.7]} 11... Nb4 {[%clk 0:02:31.5]} 12. Bg5 {[%clk 0:02:40]} 12... Nbd5
{[%clk 0:02:24.6]} 13. Ne5 {[%clk 0:02:35.2]} 13... h6 {[%clk 0:02:20.6]} 14.
Bh4 {[%clk 0:02:31.1]} 14... Nxc3 {[%clk 0:02:07.5]} 15. bxc3 {[%clk 0:02:30.1]}
15... Nd5 {[%clk 0:02:07.9]} 16. Bxe7 {[%clk 0:02:25.8]} 16... Qxe7 {[%clk
0:02:06]} 17. Ng6 {[%clk 0:02:09]} 17... Qf6 {[%clk 0:01:16.8]} 18. Bxd5 {[%clk
0:01:20.1]} 18... fxg6 {[%clk 0:00:47.5]} 19. Be4 {[%clk 0:01:02.2]} 19... Rb8
{[%clk 0:00:38.2]} 20. a5 {[%clk 0:00:57.6]} 20... Bd7 {[%clk 0:00:36.5]} 21. f3
{[%clk 0:00:48.1]} 21... Bc6 {[%clk 0:00:31.2]} 22. Rab1 {[%clk 0:00:37.8]}
22... Bxe4 {[%clk 0:00:23.7]} 23. Qxe4 {[%clk 0:00:38.7]} 23... Qf5 {[%clk
0:00:23.9]} 24. Rb6 {[%clk 0:00:36.3]} 24... Qxa5 {[%clk 0:00:22.4]} 25. Qxe6+
{[%clk 0:00:34]} 25... Kh8 {[%clk 0:00:22.8]} 26. Qxg6 {[%clk 0:00:23.4]} 26...
Qxc3 {[%clk 0:00:22.5]} 27. d5 {[%clk 0:00:08.6]} 27... Rfe8 {[%clk 0:00:21.8]}
28. h3 {[%clk 0:00:04.7]} 28... Re1+ {[%clk 0:00:18.7]} 29. Rxe1 {[%clk
0:00:03.8]} 29... Qxe1+ {[%clk 0:00:19.6]} 30. Kh2 {[%clk 0:00:04.7]} 30... Qe5+
{[%clk 0:00:20.1]} 31. Qg3 {[%clk 0:00:04.5]} 31... Qxg3+ {[%clk 0:00:19.3]} 32.
Kxg3 {[%clk 0:00:05.4]} 32... Rd8 {[%clk 0:00:19.1]} 33. Rxb7 {[%clk 0:00:04.8]}
33... Rxd5 {[%clk 0:00:19.1]} 34. Ra7 {[%clk 0:00:05.1]} 34... Ra5 {[%clk
0:00:16.1]} 35. h4 {[%clk 0:00:05.4]} 35... h5 {[%clk 0:00:15.2]} 36. Kf4 {[%clk
0:00:04.1]} 36... Kh7 {[%clk 0:00:15.5]} 37. g4 {[%clk 0:00:03.2]} 37... hxg4
{[%clk 0:00:13.1]} 38. fxg4 {[%clk 0:00:04.1]} 38... Ra4+ {[%clk 0:00:11.7]} 39.
Kg5 {[%clk 0:00:04.2]} 39... Ra5+ {[%clk 0:00:11.7]} 40. Kf4 {[%clk 0:00:04.4]}
40... Ra4+ {[%clk 0:00:12.1]} 41. Kg5 {[%clk 0:00:04.6]} 41... Ra5+ {[%clk
0:00:12.2]} 42. Kf4 {[%clk 0:00:05]} 1/2-1/2

[Event "*** SCC Grand Prix: Titled Tuesday Blitz"]
[Site "Chess.com"]
[Date "2020.07.21"]
[Round "6"]
[White "Dauletova"]
[Black "Caterpiller35"]
[Result "1-0"]
[WhiteElo "2330"]
[BlackElo "2438"]
[TimeControl "180+1"]
[EndTime "11:07:22 PDT"]
[Termination "Dauletova won on time"]

1. e4 {[%clk 0:03:00.9]} 1... c5 {[%clk 0:02:56.7]} 2. Nf3 {[%clk 0:03:00.4]}
2... Nc6 {[%clk 0:02:56.4]} 3. d4 {[%clk 0:03:00.3]} 3... cxd4 {[%clk
0:02:57.3]} 4. Nxd4 {[%clk 0:03:01.2]} 4... e5 {[%clk 0:02:58.2]} 5. Nb5 {[%clk
0:03:00.6]} 5... d6 {[%clk 0:02:58.5]} 6. c4 {[%clk 0:02:57.7]} 6... Be6 {[%clk
0:02:58.6]} 7. N1c3 {[%clk 0:02:57.1]} 7... a6 {[%clk 0:02:58.5]} 8. Na3 {[%clk
0:02:57.3]} 8... g6 {[%clk 0:02:59.4]} 9. Be3 {[%clk 0:02:52.4]} 9... Bg7 {[%clk
0:02:59]} 10. Bd3 {[%clk 0:02:51.7]} 10... Nge7 {[%clk 0:02:59]} 11. O-O {[%clk
0:02:50.9]} 11... O-O {[%clk 0:02:59.6]} 12. Nd5 {[%clk 0:02:47.1]} 12... Rc8
{[%clk 0:02:59.3]} 13. Bb6 {[%clk 0:02:36.5]} 13... Qd7 {[%clk 0:02:57.2]} 14.
Nc2 {[%clk 0:02:30.6]} 14... f5 {[%clk 0:02:55.6]} 15. f3 {[%clk 0:02:19.9]}
15... Kh8 {[%clk 0:02:45.7]} 16. b4 {[%clk 0:02:18.9]} 16... f4 {[%clk
0:02:37.1]} 17. b5 {[%clk 0:02:18.3]} 17... Nb8 {[%clk 0:02:29.3]} 18. a4 {[%clk
0:02:13.2]} 18... g5 {[%clk 0:02:25.1]} 19. Ncb4 {[%clk 0:02:06.9]} 19... g4
{[%clk 0:02:20.4]} 20. Bf2 {[%clk 0:02:01]} 20... Qe8 {[%clk 0:01:55.8]} 21.
fxg4 {[%clk 0:01:38.2]} 21... Nd7 {[%clk 0:01:49.8]} 22. bxa6 {[%clk 0:01:29]}
22... bxa6 {[%clk 0:01:47.4]} 23. Nxa6 {[%clk 0:01:28.6]} 23... Nxd5 {[%clk
0:01:17]} 24. cxd5 {[%clk 0:01:27.7]} 24... Bf7 {[%clk 0:01:17.6]} 25. Bb5
{[%clk 0:01:24]} 25... Bg6 {[%clk 0:01:09.6]} 26. Qf3 {[%clk 0:01:15.5]} 26...
Qe7 {[%clk 0:01:08.9]} 27. Rac1 {[%clk 0:01:13.3]} 27... Nf6 {[%clk 0:01:06.4]}
28. Bd3 {[%clk 0:01:08.8]} 28... h5 {[%clk 0:01:04.8]} 29. gxh5 {[%clk
0:00:57.9]} 29... Bxh5 {[%clk 0:01:02.5]} 30. Qh3 {[%clk 0:00:57.8]} 30... Rxc1
{[%clk 0:00:58.9]} 31. Rxc1 {[%clk 0:00:58.7]} 31... Qb7 {[%clk 0:00:48.1]} 32.
Be2 {[%clk 0:00:42.6]} 32... Kg8 {[%clk 0:00:44.3]} 33. Bxh5 {[%clk 0:00:41.3]}
33... Qxa6 {[%clk 0:00:43.9]} 34. Bg6 {[%clk 0:00:40.1]} 34... Qxa4 {[%clk
0:00:26]} 35. Qe6+ {[%clk 0:00:36.9]} 35... Kh8 {[%clk 0:00:23.8]} 36. Re1
{[%clk 0:00:31]} 36... Qd7 {[%clk 0:00:10.7]} 37. Bf5 {[%clk 0:00:27]} 37...
Qxe6 {[%clk 0:00:08.9]} 38. Bxe6 {[%clk 0:00:27.9]} 38... Rb8 {[%clk 0:00:08.3]}
39. h3 {[%clk 0:00:26.4]} 39... Rb2 {[%clk 0:00:07.2]} 40. Bf5 {[%clk
0:00:26.2]} 40... Bh6 {[%clk 0:00:05.6]} 41. Bh4 {[%clk 0:00:24.2]} 41... Nh5
{[%clk 0:00:05.4]} 42. Ra1 {[%clk 0:00:23.7]} 42... Ng3 {[%clk 0:00:04.5]} 43.
Bf6+ {[%clk 0:00:22.8]} 43... Kg8 {[%clk 0:00:01.8]} 44. Bg6 {[%clk 0:00:19.1]}
1-0

[Event "*** SCC Grand Prix: Titled Tuesday Blitz"]
[Site "Chess.com"]
[Date "2020.07.21"]
[Round "6"]
[White "szachuspl"]
[Black "QuintilianoR"]
[Result "0-1"]
[WhiteElo "2557"]
[BlackElo "2687"]
[TimeControl "180+1"]
[EndTime "11:07:23 PDT"]
[Termination "QuintilianoR won by resignation"]

1. d4 {[%clk 0:03:00.9]} 1... d5 {[%clk 0:02:59.5]} 2. c4 {[%clk 0:03:01]} 2...
c6 {[%clk 0:02:59.6]} 3. e3 {[%clk 0:03:00.2]} 3... Nf6 {[%clk 0:02:59.5]} 4.
Nf3 {[%clk 0:03:00.4]} 4... Bf5 {[%clk 0:02:59.2]} 5. Bd3 {[%clk 0:02:58.7]}
5... Bxd3 {[%clk 0:02:58.4]} 6. Qxd3 {[%clk 0:02:59.6]} 6... e6 {[%clk
0:02:57.1]} 7. Nc3 {[%clk 0:02:59.6]} 7... Nbd7 {[%clk 0:02:56.8]} 8. O-O {[%clk
0:02:59.4]} 8... Bb4 {[%clk 0:02:56.4]} 9. Bd2 {[%clk 0:02:59.2]} 9... Ba5
{[%clk 0:02:55.9]} 10. Rab1 {[%clk 0:02:57]} 10... O-O {[%clk 0:02:53.3]} 11. b4
{[%clk 0:02:57.2]} 11... Bc7 {[%clk 0:02:52.5]} 12. b5 {[%clk 0:02:55.6]} 12...
dxc4 {[%clk 0:02:35.8]} 13. Qxc4 {[%clk 0:02:54.4]} 13... Nb6 {[%clk 0:02:15.6]}
14. Qe2 {[%clk 0:02:54.1]} 14... Nbd5 {[%clk 0:02:06.5]} 15. bxc6 {[%clk
0:02:52]} 15... bxc6 {[%clk 0:02:07.4]} 16. Rfc1 {[%clk 0:02:51.2]} 16... Rc8
{[%clk 0:02:06]} 17. Na4 {[%clk 0:02:50.3]} 17... Bb6 {[%clk 0:02:04.2]} 18. Ne5
{[%clk 0:02:43.2]} 18... Qd6 {[%clk 0:01:48.7]} 19. Nc4 {[%clk 0:02:36.7]} 19...
Qd8 {[%clk 0:01:43.1]} 20. Ne5 {[%clk 0:02:34.1]} 20... Qd6 {[%clk 0:01:34.3]}
21. g3 {[%clk 0:02:27.7]} 21... Ne4 {[%clk 0:01:27]} 22. Be1 {[%clk 0:02:25.7]}
22... c5 {[%clk 0:01:20.6]} 23. Nc4 {[%clk 0:02:10.1]} 23... Qd8 {[%clk
0:01:13]} 24. f3 {[%clk 0:02:07.3]} 24... Nef6 {[%clk 0:01:09.5]} 25. Ncxb6
{[%clk 0:02:04.9]} 25... axb6 {[%clk 0:01:09]} 26. dxc5 {[%clk 0:02:05.2]} 26...
bxc5 {[%clk 0:01:08.5]} 27. Nxc5 {[%clk 0:02:03.7]} 27... Qe7 {[%clk 0:01:05.2]}
28. Nb3 {[%clk 0:01:57.9]} 28... Qa7 {[%clk 0:01:02.7]} 29. Nd4 {[%clk
0:01:43.6]} 29... Ra8 {[%clk 0:00:44.5]} 30. Rb2 {[%clk 0:01:39.5]} 30... e5
{[%clk 0:00:43.5]} 31. Nc6 {[%clk 0:01:26.8]} 31... Qxe3+ {[%clk 0:00:26.8]} 32.
Qxe3 {[%clk 0:01:26.9]} 32... Nxe3 {[%clk 0:00:27.7]} 33. Nxe5 {[%clk
0:01:25.9]} 33... Ra6 {[%clk 0:00:25.7]} 34. Bf2 {[%clk 0:01:23.7]} 34... Ned5
{[%clk 0:00:25.5]} 35. Bc5 {[%clk 0:01:13.4]} 35... Rfa8 {[%clk 0:00:23.9]} 36.
a3 {[%clk 0:01:13.8]} 36... h5 {[%clk 0:00:22.8]} 37. Rb3 {[%clk 0:01:08]} 37...
Nc7 {[%clk 0:00:20.5]} 38. Rcb1 {[%clk 0:01:05.8]} 38... Ne6 {[%clk 0:00:20.4]}
39. Bb4 {[%clk 0:01:05.1]} 39... Nd5 {[%clk 0:00:19.9]} 40. f4 {[%clk
0:01:01.1]} 40... f6 {[%clk 0:00:19.2]} 41. R3b2 {[%clk 0:00:59.8]} 41... fxe5
{[%clk 0:00:18.3]} 42. fxe5 {[%clk 0:00:58.9]} 42... Nxb4 {[%clk 0:00:18]} 43.
axb4 {[%clk 0:00:58.8]} 43... Rb6 {[%clk 0:00:18.5]} 44. b5 {[%clk 0:00:58.1]}
44... Rab8 {[%clk 0:00:18.9]} 45. Rb4 {[%clk 0:00:54.5]} 45... Nc7 {[%clk
0:00:18]} 46. Kf2 {[%clk 0:00:49.7]} 46... Rxb5 {[%clk 0:00:16.4]} 47. Rxb5
{[%clk 0:00:50.2]} 47... Rxb5 {[%clk 0:00:16.8]} 48. Rc1 {[%clk 0:00:50.2]}
48... Ne6 {[%clk 0:00:16.2]} 49. Re1 {[%clk 0:00:49.2]} 49... Kf7 {[%clk
0:00:16]} 50. Kf3 {[%clk 0:00:48.3]} 50... Rb4 {[%clk 0:00:16.3]} 51. h3 {[%clk
0:00:48.2]} 51... Kg6 {[%clk 0:00:16.6]} 52. Ra1 {[%clk 0:00:44.4]} 52... Ng5+
{[%clk 0:00:16.5]} 53. Ke3 {[%clk 0:00:42.7]} 53... Re4+ {[%clk 0:00:16.2]} 54.
Kd3 {[%clk 0:00:40.6]} 54... Rxe5 {[%clk 0:00:17.1]} 55. h4 {[%clk 0:00:41.1]}
55... Ne6 {[%clk 0:00:16.5]} 56. Ra6 {[%clk 0:00:40.9]} 56... Kf6 {[%clk
0:00:16.5]} 57. Ra7 {[%clk 0:00:40.2]} 57... g6 {[%clk 0:00:16.6]} 58. Ra8
{[%clk 0:00:40.1]} 58... Ng7 {[%clk 0:00:16.6]} 59. Kd4 {[%clk 0:00:39.9]} 59...
Nf5+ {[%clk 0:00:15.8]} 60. Kd3 {[%clk 0:00:37.6]} 60... Re3+ {[%clk 0:00:15.2]}
61. Kd2 {[%clk 0:00:37.3]} 61... Rxg3 {[%clk 0:00:16.1]} 62. Ra6+ {[%clk
0:00:37.6]} 62... Kg7 {[%clk 0:00:16.1]} 0-1

[Event "*** SCC Grand Prix: Titled Tuesday Blitz"]
[Site "Chess.com"]
[Date "2020.07.21"]
[Round "6"]
[White "albano87"]
[Black "andy_rekt"]
[Result "1-0"]
[WhiteElo "2404"]
[BlackElo "2229"]
[TimeControl "180+1"]
[EndTime "11:07:23 PDT"]
[Termination "albano87 won on time"]

1. e4 {[%clk 0:03:00.7]} 1... e6 {[%clk 0:03:00]} 2. d4 {[%clk 0:03:01]} 2... d5
{[%clk 0:03:00.3]} 3. Nc3 {[%clk 0:03:01.9]} 3... Nf6 {[%clk 0:03:00.3]} 4. Bg5
{[%clk 0:03:01.6]} 4... Bb4 {[%clk 0:02:59.5]} 5. e5 {[%clk 0:03:00.8]} 5... h6
{[%clk 0:02:59.6]} 6. Be3 {[%clk 0:03:00.6]} 6... Ne4 {[%clk 0:02:55.7]} 7. Qg4
{[%clk 0:03:00.1]} 7... g6 {[%clk 0:02:49.5]} 8. a3 {[%clk 0:02:59.2]} 8...
Bxc3+ {[%clk 0:02:47.4]} 9. bxc3 {[%clk 0:02:59.3]} 9... c5 {[%clk 0:02:44.1]}
10. Bd3 {[%clk 0:02:59.3]} 10... Qa5 {[%clk 0:02:43]} 11. Ne2 {[%clk 0:02:53.8]}
11... cxd4 {[%clk 0:02:18.6]} 12. Bxd4 {[%clk 0:02:52.2]} 12... Nc6 {[%clk
0:02:15.5]} 13. O-O {[%clk 0:02:52.5]} 13... h5 {[%clk 0:02:07.1]} 14. Qf4
{[%clk 0:02:48.3]} 14... Nxd4 {[%clk 0:01:59.1]} 15. cxd4 {[%clk 0:02:46.9]}
15... Qd2 {[%clk 0:01:53.3]} 16. Bxe4 {[%clk 0:02:44.9]} 16... Qxe2 {[%clk
0:01:37]} 17. Bd3 {[%clk 0:02:14.3]} 17... Qg4 {[%clk 0:01:37]} 18. Bb5+ {[%clk
0:02:14.2]} 18... Kf8 {[%clk 0:01:26.6]} 19. Qf6 {[%clk 0:02:14.1]} 19... Rg8
{[%clk 0:01:19.7]} 20. f4 {[%clk 0:01:59.7]} 20... Qf5 {[%clk 0:01:19.5]} 21.
Qd8+ {[%clk 0:01:58.1]} 21... Kg7 {[%clk 0:01:18.8]} 22. Qe7 {[%clk 0:01:47.1]}
22... Qxc2 {[%clk 0:00:52.7]} 23. Rac1 {[%clk 0:01:45.9]} 23... Qe4 {[%clk
0:00:51.5]} 24. Rc7 {[%clk 0:01:32.7]} 24... Qxd4+ {[%clk 0:00:49.8]} 25. Kh1
{[%clk 0:01:32]} 25... Rf8 {[%clk 0:00:50.3]} 26. Be8 {[%clk 0:01:30]} 26... Qd3
{[%clk 0:00:37.1]} 27. Qf6+ {[%clk 0:01:18.2]} 27... Kh6 {[%clk 0:00:25.3]} 28.
Rfc1 {[%clk 0:01:18.8]} 28... Qf5 {[%clk 0:00:23]} 29. Bxf7 {[%clk 0:00:10.5]}
29... b6 {[%clk 0:00:12.2]} 30. Qe7 {[%clk 0:00:08.2]} 30... Ba6 {[%clk
0:00:08.5]} 31. Bxe6 {[%clk 0:00:07.3]} 31... Qxf4 {[%clk 0:00:06.6]} 32. Qg7+
{[%clk 0:00:03.3]} 32... Kg5 {[%clk 0:00:06.6]} 33. Rg1 {[%clk 0:00:04.2]} 33...
Bf1 {[%clk 0:00:03.7]} 34. Qe7+ {[%clk 0:00:04.5]} 34... Kh6 {[%clk 0:00:03.6]}
35. Bh3 {[%clk 0:00:04.9]} 35... Rg8 {[%clk 0:00:01.7]} 36. Qh7+ {[%clk
0:00:05.2]} 36... Kg5 {[%clk 0:00:01.7]} 37. e6 {[%clk 0:00:05.5]} 37... Rae8
{[%clk 0:00:01.2]} 38. Rf7 {[%clk 0:00:04.8]} 1-0

[Event "*** SCC Grand Prix: Titled Tuesday Blitz"]
[Site "Chess.com"]
[Date "2020.07.21"]
[Round "6"]
[White "a3aki"]
[Black "MarceloPlaya"]
[Result "1-0"]
[WhiteElo "2033"]
[BlackElo "2272"]
[TimeControl "180+1"]
[EndTime "11:07:23 PDT"]
[Termination "a3aki won on time"]

1. e4 {[%clk 0:03:00.9]} 1... e6 {[%clk 0:02:58.2]} 2. d4 {[%clk 0:03:00.2]}
2... d5 {[%clk 0:02:52.2]} 3. Nc3 {[%clk 0:03:00.4]} 3... Bb4 {[%clk 0:02:50.9]}
4. e5 {[%clk 0:03:00.4]} 4... c5 {[%clk 0:02:40.8]} 5. a3 {[%clk 0:03:00.1]}
5... Bxc3+ {[%clk 0:02:40]} 6. bxc3 {[%clk 0:03:01]} 6... Ne7 {[%clk 0:02:37.6]}
7. Qg4 {[%clk 0:02:59.9]} 7... Qc7 {[%clk 0:02:34.8]} 8. Qxg7 {[%clk 0:02:58.1]}
8... Rg8 {[%clk 0:02:31.7]} 9. Qxh7 {[%clk 0:02:55.5]} 9... cxd4 {[%clk
0:02:31.1]} 10. Ne2 {[%clk 0:02:53]} 10... Nbc6 {[%clk 0:02:29.7]} 11. f4 {[%clk
0:02:46.7]} 11... dxc3 {[%clk 0:02:27.3]} 12. Qd3 {[%clk 0:02:45.5]} 12... Bd7
{[%clk 0:02:09.8]} 13. Rb1 {[%clk 0:02:37.5]} 13... Rc8 {[%clk 0:02:03.7]} 14.
h4 {[%clk 0:02:27.2]} 14... Na5 {[%clk 0:01:56.5]} 15. h5 {[%clk 0:02:10.3]}
15... a6 {[%clk 0:01:51.8]} 16. Nd4 {[%clk 0:02:06.7]} 16... Nf5 {[%clk
0:01:43.3]} 17. Nxf5 {[%clk 0:01:52.7]} 17... exf5 {[%clk 0:01:42.3]} 18. h6
{[%clk 0:01:45.8]} 18... Be6 {[%clk 0:01:29.1]} 19. h7 {[%clk 0:01:34.2]} 19...
Rh8 {[%clk 0:01:27.9]} 20. g3 {[%clk 0:01:01.4]} 20... b5 {[%clk 0:00:49.2]} 21.
Bh3 {[%clk 0:00:57.1]} 21... Qd7 {[%clk 0:00:41.6]} 22. Bg2 {[%clk 0:00:49.4]}
22... d4 {[%clk 0:00:37.8]} 23. Kf2 {[%clk 0:00:40.7]} 23... Nc4 {[%clk
0:00:22.6]} 24. a4 {[%clk 0:00:39.4]} 24... Rd8 {[%clk 0:00:17.9]} 25. axb5
{[%clk 0:00:38]} 25... axb5 {[%clk 0:00:17.6]} 26. Qf3 {[%clk 0:00:27.5]} 26...
Kf8 {[%clk 0:00:15.3]} 27. Qc6 {[%clk 0:00:24.2]} 27... Qxc6 {[%clk 0:00:13.9]}
28. Bxc6 {[%clk 0:00:24.8]} 28... d3 {[%clk 0:00:13.5]} 29. cxd3 {[%clk
0:00:23.7]} 29... Nd2 {[%clk 0:00:12.3]} 30. Bxd2 {[%clk 0:00:20.1]} 30... cxd2
{[%clk 0:00:11.6]} 31. Bxb5 {[%clk 0:00:19.5]} 31... Kg7 {[%clk 0:00:10.7]} 32.
Rbd1 {[%clk 0:00:18.6]} 32... Bd5 {[%clk 0:00:09.9]} 33. Rh2 {[%clk 0:00:17.7]}
33... Rb8 {[%clk 0:00:09.3]} 34. Rxd2 {[%clk 0:00:17.1]} 34... Rxb5 {[%clk
0:00:08.9]} 35. d4 {[%clk 0:00:17.4]} 35... Be4 {[%clk 0:00:08.2]} 36. Ke3
{[%clk 0:00:17]} 36... Rd5 {[%clk 0:00:07.8]} 37. Rb2 {[%clk 0:00:16.2]} 37...
Rxh7 {[%clk 0:00:07.7]} 38. Rxh7+ {[%clk 0:00:15.9]} 38... Kxh7 {[%clk
0:00:07.5]} 39. Rb7 {[%clk 0:00:16.8]} 39... Kg6 {[%clk 0:00:06.6]} 40. Rb6+
{[%clk 0:00:17]} 40... Kg7 {[%clk 0:00:06.2]} 41. g4 {[%clk 0:00:16.1]} 41...
Ra5 {[%clk 0:00:04]} 42. gxf5 {[%clk 0:00:15]} 42... Bxf5 {[%clk 0:00:03.6]} 43.
Rb3 {[%clk 0:00:14.6]} 43... Ra4 {[%clk 0:00:03.5]} 44. d5 {[%clk 0:00:13.4]}
44... Re4+ {[%clk 0:00:03.1]} 45. Kf3 {[%clk 0:00:13.3]} 45... Rd4 {[%clk
0:00:03.5]} 46. d6 {[%clk 0:00:13.5]} 46... Be6 {[%clk 0:00:03.5]} 47. Rc3
{[%clk 0:00:12.2]} 47... Bd5+ {[%clk 0:00:02.3]} 48. Kg3 {[%clk 0:00:11.1]} 1-0

[Event "*** SCC Grand Prix: Titled Tuesday Blitz"]
[Site "Chess.com"]
[Date "2020.07.21"]
[Round "6"]
[White "keshka01"]
[Black "awesomevishesh"]
[Result "1-0"]
[WhiteElo "2570"]
[BlackElo "2347"]
[TimeControl "180+1"]
[EndTime "11:07:24 PDT"]
[Termination "keshka01 won on time"]

1. e4 {[%clk 0:03:00.9]} 1... c5 {[%clk 0:02:58.4]} 2. Nf3 {[%clk 0:03:00.4]}
2... d6 {[%clk 0:02:58]} 3. d4 {[%clk 0:03:00.4]} 3... cxd4 {[%clk 0:02:58.9]}
4. Nxd4 {[%clk 0:03:01.3]} 4... Nf6 {[%clk 0:02:57.1]} 5. Nc3 {[%clk 0:03:01.6]}
5... a6 {[%clk 0:02:56]} 6. h3 {[%clk 0:03:01.7]} 6... e5 {[%clk 0:02:55.3]} 7.
Nde2 {[%clk 0:03:01.7]} 7... h5 {[%clk 0:02:54.4]} 8. g3 {[%clk 0:03:01.9]} 8...
Be7 {[%clk 0:02:23.7]} 9. Bg2 {[%clk 0:02:59.7]} 9... Be6 {[%clk 0:02:06.5]} 10.
O-O {[%clk 0:02:58.2]} 10... Nbd7 {[%clk 0:02:02]} 11. a4 {[%clk 0:02:54.9]}
11... O-O {[%clk 0:02:00.3]} 12. b3 {[%clk 0:02:54.4]} 12... Nc5 {[%clk
0:01:37.9]} 13. Ba3 {[%clk 0:02:50.2]} 13... Qc7 {[%clk 0:01:33.3]} 14. Qd2
{[%clk 0:02:27.4]} 14... Rfd8 {[%clk 0:01:21.4]} 15. Rfd1 {[%clk 0:02:26.1]}
15... Rac8 {[%clk 0:00:52.7]} 16. Qe3 {[%clk 0:01:55]} 16... Qc6 {[%clk
0:00:46]} 17. Nd5 {[%clk 0:01:47.9]} 17... Bxd5 {[%clk 0:00:34.2]} 18. exd5
{[%clk 0:01:48.8]} 18... Qc7 {[%clk 0:00:33.5]} 19. a5 {[%clk 0:01:40.4]} 19...
h4 {[%clk 0:00:30]} 20. g4 {[%clk 0:01:38.2]} 20... Nh7 {[%clk 0:00:27.8]} 21.
Bxc5 {[%clk 0:01:07.3]} 21... Qxc5 {[%clk 0:00:26.4]} 22. Qxc5 {[%clk
0:01:07.3]} 22... Rxc5 {[%clk 0:00:25.8]} 23. c4 {[%clk 0:01:08.2]} 23... Ng5
{[%clk 0:00:18.9]} 24. Nc3 {[%clk 0:01:06.8]} 24... g6 {[%clk 0:00:15.8]} 25.
Na4 {[%clk 0:01:05.8]} 25... Rc7 {[%clk 0:00:14.7]} 26. Rac1 {[%clk 0:00:57.4]}
26... f5 {[%clk 0:00:14.4]} 27. gxf5 {[%clk 0:00:53]} 27... gxf5 {[%clk
0:00:15.3]} 28. b4 {[%clk 0:00:46.8]} 28... f4 {[%clk 0:00:15]} 29. c5 {[%clk
0:00:45.3]} 29... f3 {[%clk 0:00:14.8]} 30. Bf1 {[%clk 0:00:45.6]} 30... e4
{[%clk 0:00:12.8]} 31. c6 {[%clk 0:00:39.9]} 31... e3 {[%clk 0:00:04.9]} 32.
fxe3 {[%clk 0:00:33.5]} 32... Ne4 {[%clk 0:00:04.7]} 33. Bd3 {[%clk 0:00:31]}
33... Ng3 {[%clk 0:00:04.6]} 34. Kf2 {[%clk 0:00:30.4]} 34... Rf8 {[%clk
0:00:04.7]} 35. Rc4 {[%clk 0:00:21.8]} 35... Bg5 {[%clk 0:00:03.9]} 36. Rg4
{[%clk 0:00:21.1]} 36... Rg7 {[%clk 0:00:04.1]} 37. cxb7 {[%clk 0:00:20]} 37...
Rb8 {[%clk 0:00:03.5]} 38. Bxa6 {[%clk 0:00:18.5]} 38... Kh7 {[%clk 0:00:03.3]}
39. Nb6 {[%clk 0:00:18.4]} 39... Kh6 {[%clk 0:00:02.6]} 40. Rc1 {[%clk
0:00:17.4]} 40... Re7 {[%clk 0:00:02.6]} 41. Rxg5 {[%clk 0:00:16.6]} 41... Kxg5
{[%clk 0:00:03.5]} 42. Rc8 {[%clk 0:00:16.6]} 42... Rbxb7 {[%clk 0:00:02.4]} 43.
Bxb7 {[%clk 0:00:17.5]} 43... Rxb7 {[%clk 0:00:02.8]} 44. Kxf3 {[%clk 0:00:18]}
44... Rf7+ {[%clk 0:00:01.2]} 45. Kg2 {[%clk 0:00:18.4]} 45... Ne4 {[%clk
0:00:02.1]} 46. Rg8+ {[%clk 0:00:17.9]} 46... Kh5 {[%clk 0:00:02.1]} 47. Rg4
{[%clk 0:00:17.2]} 1-0